[Event "*** SCC Grand Prix: Titled Tuesday Blitz"]
[Site "Chess.com"]
[Date "2020.08.11"]
[Round "5"]
[White "MashaFromRussia"]
[Black "Fh2411"]
[Result "1/2-1/2"]
[WhiteElo "2407"]
[BlackElo "2558"]
[TimeControl "180+1"]
[EndTime "10:55:50 PDT"]
[Termination "Game drawn by stalemate"]

1. d4 {[%clk 0:03:00.9]} 1... d5 {[%clk 0:01:16.8]} 2. c4 {[%clk 0:02:58.8]}
2... c6 {[%clk 0:01:17.7]} 3. Nf3 {[%clk 0:02:58.7]} 3... Nf6 {[%clk 0:01:17.8]}
4. Nc3 {[%clk 0:02:59.2]} 4... dxc4 {[%clk 0:01:17.7]} 5. a4 {[%clk 0:02:59.2]}
5... Bf5 {[%clk 0:01:17.9]} 6. e3 {[%clk 0:02:57.2]} 6... e6 {[%clk 0:01:17.8]}
7. Bxc4 {[%clk 0:02:57.5]} 7... Bb4 {[%clk 0:01:18.3]} 8. O-O {[%clk 0:02:56.2]}
8... Nbd7 {[%clk 0:01:18.8]} 9. Qe2 {[%clk 0:02:56.2]} 9... Bg6 {[%clk
0:01:19.1]} 10. e4 {[%clk 0:02:49.8]} 10... O-O {[%clk 0:01:15.5]} 11. Bd3
{[%clk 0:02:48.7]} 11... Bh5 {[%clk 0:01:15.3]} 12. Bg5 {[%clk 0:02:42.3]} 12...
Qa5 {[%clk 0:01:12.4]} 13. e5 {[%clk 0:02:30]} 13... Nd5 {[%clk 0:01:00.8]} 14.
Nxd5 {[%clk 0:02:18.7]} 14... cxd5 {[%clk 0:00:58.2]} 15. Rfc1 {[%clk
0:02:12.6]} 15... Rfc8 {[%clk 0:00:56.7]} 16. h3 {[%clk 0:01:52.1]} 16... Bxf3
{[%clk 0:00:32.9]} 17. Qxf3 {[%clk 0:01:45.2]} 17... Bd2 {[%clk 0:00:32.6]} 18.
Bxd2 {[%clk 0:01:29.5]} 18... Qxd2 {[%clk 0:00:33.5]} 19. Qd1 {[%clk 0:01:29.2]}
19... Qxd1+ {[%clk 0:00:26.5]} 20. Rxd1 {[%clk 0:01:28.7]} 20... a5 {[%clk
0:00:24.1]} 21. Bb5 {[%clk 0:01:23.6]} 21... Nb6 {[%clk 0:00:22.1]} 22. Rac1
{[%clk 0:01:23.7]} 22... Rxc1 {[%clk 0:00:17.3]} 23. Rxc1 {[%clk 0:01:24.6]}
23... Rc8 {[%clk 0:00:16.8]} 24. Rc5 {[%clk 0:01:16.4]} 24... Kf8 {[%clk
0:00:16.5]} 25. Kf1 {[%clk 0:01:15.7]} 25... Ke7 {[%clk 0:00:16.6]} 26. Ke2
{[%clk 0:01:15]} 26... f6 {[%clk 0:00:16.5]} 27. f4 {[%clk 0:01:14.3]} 27... h6
{[%clk 0:00:15]} 28. Kd3 {[%clk 0:01:08.9]} 28... g5 {[%clk 0:00:13.9]} 29. g3
{[%clk 0:00:57.1]} 29... h5 {[%clk 0:00:12.3]} 30. exf6+ {[%clk 0:00:47.4]}
30... Kxf6 {[%clk 0:00:13.2]} 31. fxg5+ {[%clk 0:00:47.3]} 31... Kxg5 {[%clk
0:00:13.2]} 32. Rxc8 {[%clk 0:00:47.8]} 32... Nxc8 {[%clk 0:00:14.1]} 33. Bd7
{[%clk 0:00:48]} 33... Nb6 {[%clk 0:00:12.6]} 34. Bxe6 {[%clk 0:00:47.2]} 34...
Nxa4 {[%clk 0:00:12.9]} 35. Bxd5 {[%clk 0:00:40.3]} 35... Nxb2+ {[%clk
0:00:12.7]} 36. Kc2 {[%clk 0:00:34.4]} 36... Na4 {[%clk 0:00:12.9]} 37. Bxb7
{[%clk 0:00:34.8]} 37... h4 {[%clk 0:00:13.1]} 38. gxh4+ {[%clk 0:00:26.5]}
38... Kxh4 {[%clk 0:00:14]} 39. Bc8 {[%clk 0:00:26.2]} 39... Nb6 {[%clk
0:00:11.9]} 40. Be6 {[%clk 0:00:26.4]} 40... Kg5 {[%clk 0:00:07.6]} 41. d5
{[%clk 0:00:25.7]} 41... Nxd5 {[%clk 0:00:06.9]} 42. Bxd5 {[%clk 0:00:24.2]}
42... Kh6 {[%clk 0:00:07.1]} 43. Be6 {[%clk 0:00:24.8]} 43... a4 {[%clk
0:00:07.5]} 44. Kb2 {[%clk 0:00:24.7]} 44... Kg7 {[%clk 0:00:08.1]} 45. Ka3
{[%clk 0:00:25.2]} 45... Kh6 {[%clk 0:00:09]} 46. h4 {[%clk 0:00:25.4]} 46...
Kg7 {[%clk 0:00:09.9]} 47. Bg4 {[%clk 0:00:24]} 47... Kh6 {[%clk 0:00:10.8]} 48.
h5 {[%clk 0:00:24.5]} 48... Kg7 {[%clk 0:00:11.7]} 49. Bf5 {[%clk 0:00:24.4]}
49... Kh6 {[%clk 0:00:12.6]} 50. Bg6 {[%clk 0:00:25.1]} 50... Kg7 {[%clk
0:00:13.5]} 51. Kxa4 {[%clk 0:00:25.6]} 51... Kh6 {[%clk 0:00:14.4]} 52. Kb5
{[%clk 0:00:25.7]} 52... Kg7 {[%clk 0:00:15.3]} 53. Kc5 {[%clk 0:00:26.6]} 53...
Kh8 {[%clk 0:00:16.2]} 54. Kd6 {[%clk 0:00:27.5]} 54... Kg7 {[%clk 0:00:17.1]}
55. Ke6 {[%clk 0:00:28.4]} 55... Kh8 {[%clk 0:00:18]} 56. Kf6 {[%clk 0:00:29.3]}
56... Kg8 {[%clk 0:00:18.3]} 57. h6 {[%clk 0:00:29.4]} 57... Kh8 {[%clk
0:00:19.2]} 58. Kf7 {[%clk 0:00:30.2]} 1/2-1/2

[Event "*** SCC Grand Prix: Titled Tuesday Blitz"]
[Site "Chess.com"]
[Date "2020.08.11"]
[Round "5"]
[White "140mariam"]
[Black "ChessicallyInclined"]
[Result "1-0"]
[WhiteElo "2361"]
[BlackElo "2489"]
[TimeControl "180+1"]
[EndTime "10:55:50 PDT"]
[Termination "140mariam won by resignation"]

1. d4 {[%clk 0:01:58.3]} 1... Nf6 {[%clk 0:02:51.3]} 2. c3 {[%clk 0:01:58.2]}
2... b6 {[%clk 0:02:46]} 3. Nf3 {[%clk 0:01:58.1]} 3... Bb7 {[%clk 0:02:45.8]}
4. Bf4 {[%clk 0:01:57.8]} 4... g6 {[%clk 0:02:44.1]} 5. e3 {[%clk 0:01:58.2]}
5... Bg7 {[%clk 0:02:43.8]} 6. Nbd2 {[%clk 0:01:57.9]} 6... O-O {[%clk
0:02:41.9]} 7. Bd3 {[%clk 0:01:52.4]} 7... d5 {[%clk 0:02:40.9]} 8. O-O {[%clk
0:01:51.5]} 8... Nbd7 {[%clk 0:02:37]} 9. c4 {[%clk 0:01:49.5]} 9... c5 {[%clk
0:02:36.2]} 10. Rc1 {[%clk 0:01:47.9]} 10... cxd4 {[%clk 0:02:35.4]} 11. exd4
{[%clk 0:01:45.9]} 11... dxc4 {[%clk 0:02:35.5]} 12. Bxc4 {[%clk 0:01:39.1]}
12... Rc8 {[%clk 0:02:34.8]} 13. Qa4 {[%clk 0:01:37.1]} 13... a6 {[%clk
0:02:25.9]} 14. Be2 {[%clk 0:01:24.3]} 14... b5 {[%clk 0:02:18.5]} 15. Qa3
{[%clk 0:01:25.2]} 15... Nd5 {[%clk 0:02:15.7]} 16. Bg5 {[%clk 0:01:16.7]} 16...
N7b6 {[%clk 0:02:04.5]} 17. Nb3 {[%clk 0:01:09.5]} 17... h6 {[%clk 0:01:58.8]}
18. Bh4 {[%clk 0:01:09.6]} 18... g5 {[%clk 0:01:49]} 19. Bg3 {[%clk 0:01:10]}
19... Na4 {[%clk 0:01:33.8]} 20. Nc5 {[%clk 0:01:06.3]} 20... Nxc5 {[%clk
0:01:25.7]} 21. dxc5 {[%clk 0:00:57.7]} 21... e6 {[%clk 0:01:19.6]} 22. Be5
{[%clk 0:00:55.2]} 22... Bxe5 {[%clk 0:01:14.2]} 23. Nxe5 {[%clk 0:00:56.1]}
23... Nf4 {[%clk 0:01:09.9]} 24. Bf3 {[%clk 0:00:56.5]} 24... Bxf3 {[%clk
0:01:05.6]} 25. Qxf3 {[%clk 0:00:56.1]} 25... Qd4 {[%clk 0:01:02.1]} 26. Ng4
{[%clk 0:00:52.5]} 26... Qg7 {[%clk 0:00:53.7]} 27. b4 {[%clk 0:00:50.9]} 27...
Rc7 {[%clk 0:00:48]} 28. Rfd1 {[%clk 0:00:45.8]} 28... h5 {[%clk 0:00:44.4]} 29.
Ne3 {[%clk 0:00:46]} 29... Qf6 {[%clk 0:00:29.9]} 30. Kh1 {[%clk 0:00:40.8]}
30... Kg7 {[%clk 0:00:29]} 31. g3 {[%clk 0:00:40.4]} 31... Nh3 {[%clk
0:00:28.5]} 32. Qxf6+ {[%clk 0:00:40.4]} 32... Kxf6 {[%clk 0:00:29.4]} 33. Kg2
{[%clk 0:00:41.3]} 33... g4 {[%clk 0:00:29.3]} 34. f3 {[%clk 0:00:41.8]} 34...
Kg5 {[%clk 0:00:27.1]} 35. fxg4 {[%clk 0:00:41.8]} 35... hxg4 {[%clk 0:00:28]}
36. Nxg4 {[%clk 0:00:40]} 36... Kxg4 {[%clk 0:00:24.8]} 37. Rd4+ {[%clk
0:00:40.5]} 37... Kf5 {[%clk 0:00:24]} 38. Kxh3 {[%clk 0:00:41.1]} 38... Rh8+
{[%clk 0:00:21.2]} 39. Kg2 {[%clk 0:00:41.6]} 39... e5 {[%clk 0:00:20.6]} 40.
Rd6 {[%clk 0:00:41.7]} 40... Ra8 {[%clk 0:00:16.5]} 41. Kf3 {[%clk 0:00:37.2]}
41... e4+ {[%clk 0:00:16]} 42. Ke3 {[%clk 0:00:37.5]} 42... a5 {[%clk
0:00:16.3]} 43. Rd5+ {[%clk 0:00:35.5]} 43... Kg4 {[%clk 0:00:16]} 44. a3 {[%clk
0:00:32.4]} 44... axb4 {[%clk 0:00:16.4]} 45. axb4 {[%clk 0:00:33.3]} 45... Ra4
{[%clk 0:00:16.6]} 46. Rb1 {[%clk 0:00:33.6]} 46... f5 {[%clk 0:00:16.3]} 47.
h3+ {[%clk 0:00:32.7]} 47... Kxg3 {[%clk 0:00:11]} 48. Rxf5 {[%clk 0:00:33]}
48... Kxh3 {[%clk 0:00:09.2]} 49. Kxe4 {[%clk 0:00:32.4]} 49... Rxc5 {[%clk
0:00:08.6]} 50. Rxc5 {[%clk 0:00:32.6]} 1-0

[Event "*** SCC Grand Prix: Titled Tuesday Blitz"]
[Site "Chess.com"]
[Date "2020.08.11"]
[Round "5"]
[White "GoldenShare"]
[Black "johnathan113"]
[Result "0-1"]
[WhiteElo "2500"]
[BlackElo "2701"]
[TimeControl "180+1"]
[EndTime "10:55:52 PDT"]
[Termination "johnathan113 won on time"]

1. e4 {[%clk 0:03:00.9]} 1... c5 {[%clk 0:03:00.5]} 2. Nf3 {[%clk 0:03:00.6]}
2... g6 {[%clk 0:03:01]} 3. d4 {[%clk 0:02:59.7]} 3... cxd4 {[%clk 0:03:01.9]}
4. Qxd4 {[%clk 0:03:00.1]} 4... Nf6 {[%clk 0:03:02.2]} 5. Nc3 {[%clk 0:02:58.3]}
5... Nc6 {[%clk 0:03:02.6]} 6. Qa4 {[%clk 0:02:58.9]} 6... d6 {[%clk 0:03:00.8]}
7. e5 {[%clk 0:02:59.3]} 7... dxe5 {[%clk 0:03:01.7]} 8. Nxe5 {[%clk 0:03:00.1]}
8... Bd7 {[%clk 0:03:00.8]} 9. Nxd7 {[%clk 0:03:00.2]} 9... Nxd7 {[%clk
0:03:01.7]} 10. Be3 {[%clk 0:02:57.1]} 10... Bg7 {[%clk 0:03:02.2]} 11. Bb5
{[%clk 0:02:15.9]} 11... O-O {[%clk 0:03:02.2]} 12. O-O {[%clk 0:02:14.3]} 12...
Nb6 {[%clk 0:02:56.8]} 13. Qb3 {[%clk 0:01:57.8]} 13... Nd4 {[%clk 0:02:49.6]}
14. Bxd4 {[%clk 0:01:58]} 14... Qxd4 {[%clk 0:02:49.7]} 15. Rad1 {[%clk
0:01:56.9]} 15... Qf6 {[%clk 0:02:50.1]} 16. a4 {[%clk 0:01:44.7]} 16... a5
{[%clk 0:01:59.5]} 17. Nd5 {[%clk 0:01:42.8]} 17... Nxd5 {[%clk 0:01:56.9]} 18.
Qxd5 {[%clk 0:01:43.7]} 18... b6 {[%clk 0:01:46.6]} 19. c3 {[%clk 0:01:28.6]}
19... Rac8 {[%clk 0:01:42.8]} 20. Rfe1 {[%clk 0:01:25.7]} 20... Rc7 {[%clk
0:01:36]} 21. h3 {[%clk 0:01:24.6]} 21... h5 {[%clk 0:01:35.5]} 22. Re3 {[%clk
0:01:19.3]} 22... Rc5 {[%clk 0:01:20]} 23. Qd7 {[%clk 0:01:14]} 23... e6 {[%clk
0:01:18.9]} 24. Rf3 {[%clk 0:01:10.2]} 24... Qh4 {[%clk 0:01:16.8]} 25. Qd6
{[%clk 0:01:04.6]} 25... g5 {[%clk 0:01:10.2]} 26. Qxb6 {[%clk 0:01:00.7]} 26...
Re5 {[%clk 0:01:10.4]} 27. Qxa5 {[%clk 0:00:53.3]} 27... g4 {[%clk 0:01:10]} 28.
hxg4 {[%clk 0:00:40.3]} 28... hxg4 {[%clk 0:01:10.9]} 29. Rg3 {[%clk 0:00:40]}
29... Rh5 {[%clk 0:01:03.6]} 30. Kf1 {[%clk 0:00:31.5]} 30... Re5 {[%clk
0:01:00.5]} 31. Kg1 {[%clk 0:00:30.7]} 31... Rh5 {[%clk 0:01:00.8]} 32. Kf1
{[%clk 0:00:31]} 32... Qh1+ {[%clk 0:00:57.8]} 33. Ke2 {[%clk 0:00:31.2]} 33...
Re5+ {[%clk 0:00:57.4]} 34. Kd2 {[%clk 0:00:23]} 34... Rd5+ {[%clk 0:00:49.3]}
35. Rd3 {[%clk 0:00:21.8]} 35... Qxg2 {[%clk 0:00:34.7]} 36. Rxd5 {[%clk
0:00:19.1]} 36... exd5 {[%clk 0:00:34]} 37. Qb6 {[%clk 0:00:15]} 37... d4 {[%clk
0:00:34]} 38. cxd4 {[%clk 0:00:12.9]} 38... Qxf2+ {[%clk 0:00:34.4]} 39. Kc1
{[%clk 0:00:08.4]} 39... Rc8+ {[%clk 0:00:31]} 40. Bc6 {[%clk 0:00:08.7]} 40...
g3 {[%clk 0:00:18.5]} 41. Qb7 {[%clk 0:00:04.6]} 41... Rf8 {[%clk 0:00:13.9]}
42. Bb5 {[%clk 0:00:03.3]} 42... g2 {[%clk 0:00:12.6]} 0-1

[Event "*** SCC Grand Prix: Titled Tuesday Blitz"]
[Site "Chess.com"]
[Date "2020.08.11"]
[Round "5"]
[White "Panterov"]
[Black "elegant285"]
[Result "1-0"]
[WhiteElo "2219"]
[BlackElo "2368"]
[TimeControl "180+1"]
[EndTime "10:55:53 PDT"]
[Termination "Panterov won by resignation"]

1. e4 {[%clk 0:03:00.9]} 1... c6 {[%clk 0:02:59.2]} 2. d4 {[%clk 0:02:58.5]}
2... d5 {[%clk 0:03:00.1]} 3. exd5 {[%clk 0:02:58.8]} 3... cxd5 {[%clk
0:03:00.1]} 4. Nf3 {[%clk 0:02:59.7]} 4... Nc6 {[%clk 0:02:59.2]} 5. Bd3 {[%clk
0:03:00.6]} 5... Nf6 {[%clk 0:02:57.1]} 6. h3 {[%clk 0:02:59.5]} 6... g6 {[%clk
0:02:55.2]} 7. c3 {[%clk 0:02:59.3]} 7... Bg7 {[%clk 0:02:55.1]} 8. O-O {[%clk
0:02:59.3]} 8... Bf5 {[%clk 0:02:55.3]} 9. Bxf5 {[%clk 0:02:57.9]} 9... gxf5
{[%clk 0:02:56.2]} 10. Bf4 {[%clk 0:02:56.4]} 10... O-O {[%clk 0:02:54]} 11.
Nbd2 {[%clk 0:02:56]} 11... Ne4 {[%clk 0:02:54.4]} 12. Re1 {[%clk 0:02:55.9]}
12... Kh8 {[%clk 0:02:46.9]} 13. Nf1 {[%clk 0:02:48.9]} 13... Rg8 {[%clk
0:02:42.8]} 14. Ng3 {[%clk 0:02:48.6]} 14... Qd7 {[%clk 0:02:25.1]} 15. Qe2
{[%clk 0:02:46.5]} 15... Bf6 {[%clk 0:01:51.1]} 16. Nh5 {[%clk 0:02:34.4]} 16...
Rg6 {[%clk 0:01:42.4]} 17. Nxf6 {[%clk 0:02:30.6]} 17... exf6 {[%clk 0:01:42.2]}
18. Nh4 {[%clk 0:02:27.3]} 18... Rg7 {[%clk 0:01:35.4]} 19. f3 {[%clk
0:02:26.8]} 19... Ng3 {[%clk 0:01:29.3]} 20. Bxg3 {[%clk 0:02:17.6]} 20... Rxg3
{[%clk 0:01:30.2]} 21. Qd3 {[%clk 0:02:17.4]} 21... Rag8 {[%clk 0:01:27.5]} 22.
Re2 {[%clk 0:02:14.8]} 22... Rxh3 {[%clk 0:01:21.3]} 23. Qxf5 {[%clk 0:02:14.2]}
23... Qxf5 {[%clk 0:01:06]} 24. Nxf5 {[%clk 0:02:13.8]} 24... Rxf3 {[%clk
0:01:06.1]} 25. Nh6 {[%clk 0:02:13.7]} 25... Rg6 {[%clk 0:01:00.4]} 26. Nxf7+
{[%clk 0:02:03.8]} 26... Kg7 {[%clk 0:01:00]} 27. Nd6 {[%clk 0:02:03.1]} 27...
Rfg3 {[%clk 0:00:56.4]} 28. Nxb7 {[%clk 0:02:01.8]} 28... h5 {[%clk 0:00:55.6]}
29. Nd6 {[%clk 0:01:58.2]} 29... R3g5 {[%clk 0:00:47.5]} 30. Ne8+ {[%clk
0:01:51]} 30... Kh6 {[%clk 0:00:37.2]} 31. Rf1 {[%clk 0:01:50.2]} 31... f5
{[%clk 0:00:36]} 32. Nc7 {[%clk 0:01:49.7]} 32... Rd6 {[%clk 0:00:23.6]} 33. Ne6
{[%clk 0:01:42.7]} 33... Rg6 {[%clk 0:00:21.2]} 34. Nf4 {[%clk 0:01:39.5]} 34...
Rg4 {[%clk 0:00:20.5]} 35. Re6+ {[%clk 0:01:38.9]} 35... Rxe6 {[%clk 0:00:20.3]}
36. Nxe6 {[%clk 0:01:39.8]} 36... h4 {[%clk 0:00:19.8]} 37. Rxf5 {[%clk
0:01:36.5]} 37... h3 {[%clk 0:00:20.2]} 38. Rf2 {[%clk 0:01:36.4]} 38... Ne7
{[%clk 0:00:18.4]} 39. Nf4 {[%clk 0:01:33.9]} 39... Nf5 {[%clk 0:00:16.8]} 40.
Nxh3 {[%clk 0:01:33.1]} 40... Ne3 {[%clk 0:00:15.2]} 41. Re2 {[%clk 0:01:31.3]}
41... Rg3 {[%clk 0:00:14.2]} 42. Kh2 {[%clk 0:01:29.6]} 42... Nf1+ {[%clk
0:00:13.3]} 43. Kg1 {[%clk 0:01:28.6]} 43... Ne3 {[%clk 0:00:13.5]} 44. Kf2
{[%clk 0:01:27.7]} 44... Rxg2+ {[%clk 0:00:08]} 45. Kxe3 {[%clk 0:01:26.4]}
45... Rg3+ {[%clk 0:00:08.9]} 46. Kf4 {[%clk 0:01:26.2]} 46... Rxh3 {[%clk
0:00:09.8]} 47. Kg4 {[%clk 0:01:22.2]} 47... Rh1 {[%clk 0:00:09.5]} 48. Re6+
{[%clk 0:01:20.6]} 48... Kg7 {[%clk 0:00:09]} 49. Re7+ {[%clk 0:01:20.7]} 49...
Kf6 {[%clk 0:00:08.7]} 50. Rxa7 {[%clk 0:01:21.6]} 50... Rb1 {[%clk 0:00:08.7]}
51. Rb7 {[%clk 0:01:19.7]} 51... Ra1 {[%clk 0:00:08.6]} 52. a3 {[%clk
0:01:19.1]} 52... Rf1 {[%clk 0:00:08.4]} 53. a4 {[%clk 0:01:17.7]} 53... Ke6
{[%clk 0:00:08.6]} 54. a5 {[%clk 0:01:17]} 54... Ra1 {[%clk 0:00:09.2]} 55. Rb5
{[%clk 0:01:15.9]} 55... Ra2 {[%clk 0:00:08.9]} 56. Kf4 {[%clk 0:01:15]} 56...
Ra1 {[%clk 0:00:09.4]} 57. Ke3 {[%clk 0:01:14.5]} 57... Re1+ {[%clk 0:00:08.3]}
58. Kd2 {[%clk 0:01:14.1]} 58... Ra1 {[%clk 0:00:09.2]} 59. Kc2 {[%clk
0:01:13.8]} 59... Kd6 {[%clk 0:00:09.5]} 60. Kb3 {[%clk 0:01:13.7]} 60... Kc6
{[%clk 0:00:09.7]} 61. Rc5+ {[%clk 0:01:13.6]} 61... Kd6 {[%clk 0:00:10.3]} 62.
Kb4 {[%clk 0:01:13.5]} 62... Ra2 {[%clk 0:00:10.4]} 63. b3 {[%clk 0:01:13.2]}
63... Ra1 {[%clk 0:00:10.8]} 64. Kb5 {[%clk 0:01:13]} 64... Ra2 {[%clk
0:00:10.6]} 65. b4 {[%clk 0:01:12.8]} 65... Ra1 {[%clk 0:00:11.1]} 66. a6 {[%clk
0:01:12.7]} 66... Ra2 {[%clk 0:00:10.9]} 67. Kb6 {[%clk 0:01:11.8]} 67... Ra1
{[%clk 0:00:10.4]} 68. Ra5 {[%clk 0:01:11.2]} 68... Rh1 {[%clk 0:00:09]} 69. a7
{[%clk 0:01:09.9]} 1-0

[Event "*** SCC Grand Prix: Titled Tuesday Blitz"]
[Site "Chess.com"]
[Date "2020.08.11"]
[Round "5"]
[White "pfalcon1949"]
[Black "tan275"]
[Result "0-1"]
[WhiteElo "1957"]
[BlackElo "2224"]
[TimeControl "180+1"]
[EndTime "10:55:54 PDT"]
[Termination "tan275 won by checkmate"]

1. d4 {[%clk 0:03:00.9]} 1... Nf6 {[%clk 0:02:58.3]} 2. c4 {[%clk 0:03:01.8]}
2... e6 {[%clk 0:02:57.8]} 3. Nc3 {[%clk 0:03:02.7]} 3... d5 {[%clk 0:02:57.8]}
4. cxd5 {[%clk 0:03:00.5]} 4... exd5 {[%clk 0:02:55.8]} 5. Bg5 {[%clk
0:03:00.8]} 5... Be7 {[%clk 0:02:50.9]} 6. e3 {[%clk 0:03:00.2]} 6... c6 {[%clk
0:02:51.1]} 7. Bd3 {[%clk 0:03:00]} 7... Nbd7 {[%clk 0:02:52]} 8. Nge2 {[%clk
0:02:59.3]} 8... Nh5 {[%clk 0:02:48.2]} 9. Bxe7 {[%clk 0:02:50.1]} 9... Qxe7
{[%clk 0:02:49.1]} 10. h3 {[%clk 0:02:50]} 10... g6 {[%clk 0:02:45.3]} 11. Qc2
{[%clk 0:02:48.4]} 11... Nb6 {[%clk 0:02:44.6]} 12. O-O-O {[%clk 0:02:44]} 12...
Ng7 {[%clk 0:02:42.6]} 13. Kb1 {[%clk 0:02:42.3]} 13... Bf5 {[%clk 0:02:39.5]}
14. b3 {[%clk 0:02:26.2]} 14... O-O-O {[%clk 0:02:35.7]} 15. Rc1 {[%clk
0:02:24.2]} 15... Kb8 {[%clk 0:02:33.3]} 16. Ka1 {[%clk 0:02:21.1]} 16... Bxd3
{[%clk 0:02:31.1]} 17. Qxd3 {[%clk 0:02:20.4]} 17... Nf5 {[%clk 0:02:30.5]} 18.
Kb2 {[%clk 0:02:01.1]} 18... Rhe8 {[%clk 0:02:28.1]} 19. Rhf1 {[%clk 0:01:53.4]}
19... Nd6 {[%clk 0:02:27.3]} 20. Rc2 {[%clk 0:01:48.1]} 20... a5 {[%clk
0:02:19.4]} 21. Rfc1 {[%clk 0:01:47]} 21... a4 {[%clk 0:02:18.1]} 22. bxa4
{[%clk 0:01:37.6]} 22... Ndc4+ {[%clk 0:02:16.7]} 23. Ka1 {[%clk 0:01:36.4]}
23... Qa3 {[%clk 0:02:10.6]} 24. Rb1 {[%clk 0:01:13.4]} 24... Nxa4 {[%clk
0:02:04.8]} 25. Rb3 {[%clk 0:01:07.2]} 25... Nab2 {[%clk 0:01:40.4]} 26. Rcxb2
{[%clk 0:00:47.7]} 26... Nxb2 {[%clk 0:01:39.5]} 27. Rxb2 {[%clk 0:00:46.6]}
27... Rd7 {[%clk 0:01:34.7]} 28. Qb1 {[%clk 0:00:43.3]} 28... Qa6 {[%clk
0:01:14.7]} 29. Nc1 {[%clk 0:00:36.7]} 29... Qc4 {[%clk 0:01:09.7]} 30. Qc2
{[%clk 0:00:28.8]} 30... c5 {[%clk 0:01:03.5]} 31. dxc5 {[%clk 0:00:26.8]} 31...
Qxc5 {[%clk 0:01:01]} 32. Nd3 {[%clk 0:00:26.2]} 32... Qc4 {[%clk 0:00:54]} 33.
Rb4 {[%clk 0:00:22.2]} 33... Qc6 {[%clk 0:00:47.7]} 34. Qb2 {[%clk 0:00:19.7]}
34... d4 {[%clk 0:00:40.5]} 35. exd4 {[%clk 0:00:18]} 35... Rc7 {[%clk
0:00:36.8]} 36. Rb3 {[%clk 0:00:14.7]} 36... Qc4 {[%clk 0:00:30.6]} 37. Nc5
{[%clk 0:00:08]} 37... Re1+ {[%clk 0:00:23.8]} 38. Nb1 {[%clk 0:00:07.7]} 38...
Qd5 {[%clk 0:00:16.2]} 39. Na6+ {[%clk 0:00:03.7]} 39... Kc8 {[%clk 0:00:16.5]}
40. Nxc7 {[%clk 0:00:04.6]} 40... Kxc7 {[%clk 0:00:16.2]} 41. Rc3+ {[%clk
0:00:04.8]} 41... Kd7 {[%clk 0:00:14.6]} 42. Qd2 {[%clk 0:00:04.3]} 42... Qe6
{[%clk 0:00:11.9]} 43. d5 {[%clk 0:00:04]} 43... Qe4 {[%clk 0:00:11.5]} 44. d6
{[%clk 0:00:03.8]} 44... Qxb1# {[%clk 0:00:11.2]} 0-1

[Event "*** SCC Grand Prix: Titled Tuesday Blitz"]
[Site "Chess.com"]
[Date "2020.08.11"]
[Round "5"]
[White "Chessalary"]
[Black "Iris77"]
[Result "1-0"]
[WhiteElo "2290"]
[BlackElo "2041"]
[TimeControl "180+1"]
[EndTime "10:56:00 PDT"]
[Termination "Chessalary won on time"]

1. e4 {[%clk 0:03:00.3]} 1... e6 {[%clk 0:03:00.9]} 2. d4 {[%clk 0:02:59.5]}
2... d5 {[%clk 0:03:00.6]} 3. Nd2 {[%clk 0:03:00.1]} 3... c5 {[%clk 0:02:57.4]}
4. exd5 {[%clk 0:02:56.6]} 4... Qxd5 {[%clk 0:02:55.7]} 5. Ngf3 {[%clk
0:02:57.5]} 5... cxd4 {[%clk 0:02:54.7]} 6. Bc4 {[%clk 0:02:55.8]} 6... Qd6
{[%clk 0:02:53.8]} 7. Nb3 {[%clk 0:02:56.2]} 7... Nc6 {[%clk 0:02:49.5]} 8. O-O
{[%clk 0:02:55.2]} 8... Nf6 {[%clk 0:02:48.8]} 9. Nbxd4 {[%clk 0:02:54.6]} 9...
Nxd4 {[%clk 0:02:40.1]} 10. Nxd4 {[%clk 0:02:55.5]} 10... a6 {[%clk 0:02:39.8]}
11. Re1 {[%clk 0:02:47.1]} 11... Qc7 {[%clk 0:02:36.3]} 12. Bb3 {[%clk
0:02:43.4]} 12... Bd6 {[%clk 0:02:32]} 13. h3 {[%clk 0:02:13.7]} 13... O-O
{[%clk 0:02:29.9]} 14. Bg5 {[%clk 0:02:14.2]} 14... Be5 {[%clk 0:02:23.2]} 15.
c3 {[%clk 0:02:11]} 15... h6 {[%clk 0:02:14.3]} 16. Bxf6 {[%clk 0:02:04.8]}
16... Bxf6 {[%clk 0:02:13.4]} 17. Qf3 {[%clk 0:02:05.2]} 17... Bd7 {[%clk
0:02:08]} 18. Rad1 {[%clk 0:02:02.3]} 18... Rad8 {[%clk 0:02:04.4]} 19. Bc2
{[%clk 0:01:44]} 19... Rfe8 {[%clk 0:01:53.4]} 20. Qe4 {[%clk 0:01:23.9]} 20...
g6 {[%clk 0:01:47]} 21. Qf3 {[%clk 0:01:19.7]} 21... Bg7 {[%clk 0:01:44.2]} 22.
Qe3 {[%clk 0:01:09.8]} 22... e5 {[%clk 0:01:29.2]} 23. Nf3 {[%clk 0:01:06.5]}
23... Bc6 {[%clk 0:01:09.5]} 24. Be4 {[%clk 0:00:53.3]} 24... Bxe4 {[%clk
0:01:03.4]} 25. Qxe4 {[%clk 0:00:54.2]} 25... f5 {[%clk 0:00:56]} 26. Qe3 {[%clk
0:00:47.2]} 26... e4 {[%clk 0:00:46.8]} 27. Rxd8 {[%clk 0:00:31.8]} 27... Rxd8
{[%clk 0:00:45.3]} 28. Nh4 {[%clk 0:00:27.4]} 28... Qf7 {[%clk 0:00:44]} 29. Qb6
{[%clk 0:00:24]} 29... Bf6 {[%clk 0:00:39.9]} 30. g3 {[%clk 0:00:15.6]} 30...
Rd7 {[%clk 0:00:36.5]} 31. Ng2 {[%clk 0:00:15.2]} 31... Bd8 {[%clk 0:00:31.5]}
32. Qe3 {[%clk 0:00:13.3]} 32... Kh7 {[%clk 0:00:30.5]} 33. Nf4 {[%clk
0:00:13.8]} 33... Qxa2 {[%clk 0:00:19.2]} 34. Qe2 {[%clk 0:00:11.6]} 34... Qf7
{[%clk 0:00:16.9]} 35. Rd1 {[%clk 0:00:11.5]} 35... Bc7 {[%clk 0:00:13.7]} 36.
Rxd7 {[%clk 0:00:08.6]} 36... Qxd7 {[%clk 0:00:12.9]} 37. Qc4 {[%clk 0:00:09.5]}
37... Be5 {[%clk 0:00:10.8]} 38. Ne6 {[%clk 0:00:07]} 38... Qe7 {[%clk
0:00:05.6]} 39. Nc5 {[%clk 0:00:05.6]} 39... Bd6 {[%clk 0:00:03.1]} 40. Nb3
{[%clk 0:00:04.3]} 40... b5 {[%clk 0:00:02.8]} 41. Qd5 {[%clk 0:00:04.1]} 41...
Be5 {[%clk 0:00:02.6]} 42. Nd4 {[%clk 0:00:04.2]} 42... Bf6 {[%clk 0:00:01.7]}
43. Nc6 {[%clk 0:00:03.4]} 1-0